bitfinex-derivatives/quotes_BTCF0:USTF0_20240910
["timestamp","ask_amount","ask_price","bid_price","bid_amount"]
[1725970271330,0.42795337,57318.0,57316.0,0.087229]
[1725970271331,0.08723,57317.0,57316.0,0.087229]
[1725970271528,0.08723,57317.0,57316.0,0.088029]
[1725970272424,0.14078511,57317.0,57316.0,0.088029]
[1725970272626,0.11469258,57319.0,57318.0,0.087228]
[1725970272927,0.05355509,57319.0,57318.0,0.088028]
[1725970273634,0.01165983,57320.0,57318.0,0.248028]
[1725970273838,0.01165983,57320.0,57319.0,0.224652]
[1725970274136,0.01165983,57320.0,57319.0,1.435278]
[1725970275135,8.3e-07,57320.0,57319.0,1.435278]
[1725970275829,0.00500083,57320.0,57319.0,1.349052]
[1725970276039,0.00500083,57320.0,57319.0,0.661826]
[1725970276825,8.3e-07,57320.0,57319.0,0.141426]
[1725970277928,8.3e-07,57320.0,57319.0,0.140426]
[1725970285269,8.3e-07,57320.0,57319.0,0.227652]
[1725970285941,8.3e-07,57320.0,57319.0,1.351052]
[1725970286151,8.3e-07,57320.0,57319.0,1.438278]
[1725970291460,8.3e-07,57320.0,57319.0,1.451308]
[1725970293561,3.9e-07,57321.0,57320.0,0.261675]
[1725970293765,3.9e-07,57321.0,57320.0,0.945835]
[1725970293966,3.9e-07,57321.0,57320.0,1.63306]
[1725970294858,0.01763175,57324.0,57323.0,0.26166]
[1725970294859,8.4e-07,57324.0,57323.0,0.26166]
[1725970295060,1.8e-07,57325.0,57324.0,0.872236]
[1725970295266,4.1e-07,57326.0,57325.0,0.508868]
[1725970295465,1e-07,57327.0,57326.0,0.348864]
[1725970295665,0.0041,57334.0,57333.0,0.17441]
[1725970295968,0.04752,57343.0,57342.0,0.083091]
[1725970296173,0.0466,57343.0,57342.0,0.083891]
[1725970296369,0.00088,57353.0,57342.0,0.52396]
[1725970296665,0.00088,57353.0,57352.0,0.247976]
[1725970297168,0.1455,57359.0,57358.0,0.087167]
[1725970297468,0.087149,57370.0,57358.0,0.1608]
[1725970297763,0.087154,57367.0,57361.0,0.16]
[1725970297966,0.087164,57360.0,57356.0,0.0041]
[1725970298269,0.087169,57357.0,57349.0,0.0041]
[1725970298465,0.0943,57356.0,57346.0,0.16]
[1725970298655,0.0943,57356.0,57350.0,0.16]
[1725970301570,0.0943,57356.0,57350.0,0.164]
[1725970302572,0.087172,57355.0,57350.0,0.164]
[1725970303678,0.087172,57355.0,57350.0,0.16]
[1725970303867,0.087172,57355.0,57350.0,0.164]
[1725970304474,0.087177,57352.0,57350.0,0.164]
[1725970304664,0.087178,57351.0,57350.0,0.004]
[1725970308372,0.0943,57356.0,57350.0,0.164]
[1725970308679,0.18147,57356.0,57355.0,0.1608]
[1725970308982,0.18147,57356.0,57355.0,0.0008]
[1725970309479,0.26864,57356.0,57355.0,0.0008]
[1725970310779,0.23864,57356.0,57355.0,0.0008]
[1725970310975,0.29215661,57356.0,57355.0,0.0008]
[1725970311174,0.29415661,57356.0,57355.0,0.0008]
[1725970311374,0.38132661,57356.0,57355.0,0.0008]
[1725970311578,0.32781,57356.0,57355.0,0.0008]
[1725970311776,0.32781,57356.0,57355.0,1e-06]
[1725970311976,0.32781,57356.0,57336.0,0.047]
[1725970311977,0.174374,57345.0,57336.0,0.207]
[1725970312178,0.16,57346.0,57336.0,0.16]
[1725970312474,0.06718,57356.0,57329.0,0.0524]
[1725970312475,0.087203,57334.0,57333.0,0.16]
[1725970312670,0.16,57336.0,57328.0,0.00164]
[1725970312870,0.16,57336.0,57335.0,0.0008]
[1725970312871,0.2472,57336.0,57335.0,0.0008]
[1725970313165,0.47513544,57336.0,57335.0,0.0008]
[1725970313369,0.47513544,57336.0,57323.0,0.0041]
[1725970313370,0.087219,57324.0,57323.0,0.0041]
[1725970313577,0.087219,57324.0,57319.0,0.17303]
[1725970313578,0.087225,57320.0,57319.0,0.17303]
[1725970313970,0.087225,57320.0,57319.0,0.01303]
[1725970315078,0.17445,57320.0,57319.0,0.01303]
[1725970315271,0.17445,57320.0,57319.0,0.02703]
[1725970315479,0.087225,57320.0,57319.0,0.02703]
[1725970316479,0.088225,57320.0,57319.0,0.03403]
[1725970316874,0.17545,57320.0,57319.0,0.03403]
[1725970317181,0.17545,57320.0,57301.0,0.05669871]
[1725970317182,0.08724,57310.0,57301.0,0.05669871]
[1725970317481,0.08724,57310.0,57298.0,0.19218394]
[1725970317482,0.087252,57302.0,57299.0,0.0041]
[1725970317679,0.087255,57300.0,57298.0,0.16]
[1725970318077,0.087248,57305.0,57298.0,0.16]
[1725970318485,0.0487,57309.0,57304.0,0.0008]
[1725970318689,0.135941,57309.0,57308.0,0.0008]
[1725970318980,0.087248,57305.0,57304.0,0.0008]
[1725970320485,0.088248,57305.0,57304.0,0.0118]
[1725970321380,0.001,57305.0,57304.0,0.0118]
[1725970321578,0.001,57305.0,57304.0,0.099049]
[1725970321974,0.134726,57320.0,57307.0,0.087244]
[1725970322283,0.087239,57311.0,57307.0,0.247244]
[1725970322983,0.087239,57311.0,57309.0,0.087241]
[1725970323487,0.088239,57311.0,57309.0,0.087241]
[1725970324280,0.087239,57311.0,57309.0,0.087241]
[1725970324489,0.087239,57311.0,57309.0,0.091241]
[1725970324886,0.087239,57311.0,57310.0,0.08724]
[1725970325391,0.088239,57311.0,57310.0,0.08724]
[1725970326288,0.088239,57311.0,57310.0,0.09324]
[1725970326889,0.088239,57311.0,57310.0,0.09724]
[1725970329583,0.087239,57311.0,57310.0,0.09124]
[1725970329783,0.088239,57311.0,57310.0,0.09324]
[1725970329984,0.088239,57311.0,57310.0,0.01]
[1725970330687,0.088239,57311.0,57310.0,0.006]
[1725970330889,0.088239,57311.0,57310.0,0.011]
[1725970331495,0.088239,57311.0,57310.0,0.006]
[1725970331685,0.088239,57311.0,57310.0,0.09724]
[1725970332293,0.087239,57311.0,57310.0,0.09124]
[1725970332688,0.088239,57311.0,57310.0,0.09824]
[1725970333194,0.001,57311.0,57310.0,0.25824]
[1725970333490,0.087232,57316.0,57315.0,0.087232]
[1725970333894,0.29390084,57325.0,57315.0,0.1608]
[1725970333895,0.087223,57321.0,57315.0,0.1608]
[1725970334097,0.34248084,57325.0,57320.0,0.0008]
[1725970334301,0.087223,57321.0,57320.0,0.088023]
[1725970334598,0.087152,57368.0,57336.0,0.8839]
[1725970334790,0.0477,57377.0,57367.0,0.1608]
[1725970335096,0.0477,57377.0,57376.0,0.0008]
[1725970335293,0.0477,57377.0,57367.0,0.0008]
[1725970337688,0.0477,57377.0,57367.0,0.0018]
[1725970337689,0.0567,57377.0,57367.0,0.0018]
[1725970337889,0.0567,57377.0,57371.0,0.247147]
[1725970338399,0.0697,57377.0,57372.0,0.087145]
[1725970339095,0.0627,57377.0,57372.0,0.087145]
[1725970339498,0.0627,57377.0,57371.0,0.001]
[1725970339706,0.2227,57377.0,57371.0,0.001]
[1725970340786,0.2167,57377.0,57372.0,0.001]
[1725970340997,0.2237,57377.0,57372.0,0.001]
[1725970341202,0.2227,57377.0,57372.0,0.001]
[1725970341605,0.2217,57377.0,57371.0,0.002]
[1725970342298,0.16,57373.0,57371.0,0.001]
[1725970342501,0.087149,57370.0,57358.0,0.087167]
[1725970342689,0.16,57364.0,57358.0,0.087167]
[1725970343802,0.16,57364.0,57359.0,0.087165]
[1725970344703,0.4,57363.0,57362.0,0.087161]
[1725970346407,0.1608,57373.0,57366.0,0.087154]
[1725970346597,0.0008,57373.0,57372.0,0.0008]
[1725970346795,0.4008,57373.0,57372.0,0.0008]
[1725970346996,0.95119772,57373.0,57372.0,0.0008]
[1725970347201,1.55119772,57373.0,57372.0,0.0008]
[1725970347389,0.95119772,57373.0,57372.0,0.0008]
[1725970347595,1.55119772,57373.0,57372.0,0.0008]
[1725970347802,0.95119772,57373.0,57372.0,0.0008]
[1725970348004,0.95119772,57373.0,57368.0,0.087151]
[1725970348005,1.55319772,57373.0,57368.0,0.087151]
[1725970348205,0.59031772,57373.0,57368.0,0.087151]
[1725970348393,0.59031772,57373.0,57372.0,0.001]
[1725970348394,0.68646172,57373.0,57372.0,0.001]
[1725970348593,0.68446172,57373.0,57372.0,0.001]
[1725970348800,0.68446172,57373.0,57372.0,0.002]
[1725970348801,1.81434172,57373.0,57372.0,0.002]
[1725970348999,1.81354172,57373.0,57372.0,0.002]
[1725970349201,1.81514172,57373.0,57372.0,0.002]
[1725970349502,1.72799772,57373.0,57372.0,0.002]
[1725970349910,1.72799772,57373.0,57372.0,0.089146]
[1725970350207,0.96799772,57373.0,57372.0,0.089146]
[1725970350394,1.56799772,57373.0,57372.0,0.089146]
[1725970350594,0.95899772,57373.0,57372.0,0.088146]
[1725970350794,0.96799772,57373.0,57372.0,0.089146]
[1725970350999,1.56799772,57373.0,57372.0,0.089146]
[1725970351295,0.96799772,57373.0,57372.0,0.089146]
[1725970351695,0.44511772,57373.0,57372.0,0.089146]
[1725970351998,1.56099772,57373.0,57372.0,0.089146]
[1725970352203,0.44511772,57373.0,57372.0,0.089146]
[1725970352399,1.56799772,57373.0,57372.0,0.089146]
[1725970352601,0.96799772,57373.0,57372.0,0.089146]
[1725970352802,0.44511772,57373.0,57372.0,0.089146]
[1725970353308,0.0176,57373.0,57372.0,0.089146]
[1725970357202,0.627624,57373.0,57372.0,0.002]
[1725970359601,1.227624,57373.0,57366.0,0.087154]
[1725970359910,0.16,57372.0,57366.0,0.087154]
[1725970360211,0.087153,57367.0,57366.0,0.087154]
[1725970361905,0.003,57367.0,57366.0,0.087154]
[1725970362096,0.004,57367.0,57366.0,0.087154]
[1725970364098,0.004,57367.0,57366.0,0.247154]
[1725970364305,0.087148,57371.0,57370.0,0.087149]
[1725970364909,0.0016,57373.0,57372.0,0.087146]
[1725970365209,0.0016,57373.0,57372.0,0.087546]
[1725970365507,0.0016,57373.0,57372.0,0.087146]
[1725970365714,0.11655505,57373.0,57372.0,0.087146]
[1725970365902,0.088744,57373.0,57372.0,0.087146]
[1725970367519,0.088744,57373.0,57372.0,0.088146]
[1725970367520,0.095744,57373.0,57372.0,0.088146]
[1725970367818,0.005599,57373.0,57372.0,0.088146]
[1725970368004,0.005599,57373.0,57372.0,0.3066049]
[1725970368309,0.012599,57373.0,57372.0,0.089146]
[1725970368701,0.012599,57373.0,57372.0,0.14102141]
[1725970368907,0.012599,57373.0,57372.0,0.089146]
[1725970369212,0.087139,57377.0,57374.0,0.087142]
[1725970369514,0.087139,57377.0,57376.0,0.0008]
[1725970370018,0.0267484,57382.0,57376.0,0.0008]
[1725970370322,0.42703337,57387.0,57381.0,0.0008]
[1725970370503,0.08713,57382.0,57381.0,0.0008]
[1725970370708,0.08713,57382.0,57379.0,0.087135]
[1725970371110,0.087132,57381.0,57379.0,0.087135]
[1725970374111,0.087134,57380.0,57379.0,0.087135]
[1725970375306,0.088134,57380.0,57379.0,0.087135]
[1725970375504,0.091134,57380.0,57379.0,0.087135]
[1725970375708,0.091134,57380.0,57373.0,0.05597339]
[1725970375709,0.087137,57378.0,57373.0,0.05597339]
[1725970375910,0.087137,57378.0,57377.0,0.087138]
[1725970376210,0.140635,57378.0,57377.0,0.087138]
[1725970376814,0.138735,57378.0,57377.0,0.087138]
[1725970378007,0.053498,57378.0,57370.0,0.0004]
[1725970378310,0.334294,57371.0,57370.0,0.0004]
[1725970378511,0.300645,57371.0,57370.0,0.0004]
[1725970378717,0.700645,57371.0,57370.0,0.0004]
[1725970378917,0.763157,57371.0,57370.0,0.0004]
[1725970379315,0.763157,57371.0,57370.0,0.0084]
[1725970379615,0.700645,57371.0,57370.0,0.0084]
[1725970379811,0.540645,57371.0,57370.0,0.0124]
[1725970380418,0.140645,57371.0,57370.0,0.0124]
[1725970381313,0.387792,57371.0,57370.0,0.0124]
[1725970381717,0.387792,57371.0,57370.0,0.0024]
[1725970382320,0.087159,57363.0,57362.0,0.0041]
[1725970382632,0.087166,57359.0,57358.0,0.087167]
[1725970382920,0.140664,57359.0,57358.0,0.087167]
[1725970383313,0.087166,57359.0,57358.0,0.13904039]
[1725970383523,0.087166,57359.0,57358.0,0.087167]
[1725970383726,0.087166,57359.0,57356.0,0.05187339]
[1725970383922,0.087166,57359.0,57355.0,0.05187339]
[1725970384218,0.087162,57362.0,57359.0,0.087164]
[1725970384426,0.087162,57362.0,57360.0,0.087162]
[1725970384627,0.087155,57366.0,57363.0,0.087159]
[1725970384833,0.087155,57366.0,57364.0,0.087157]
[1725970384834,0.02698841,57366.0,57364.0,0.087157]
[1725970385019,0.087159,57364.0,57362.0,0.008]
[1725970385326,0.087159,57363.0,57362.0,0.008]
[1725970385621,0.087161,57362.0,57361.0,0.0008]
[1725970385821,0.134861,57362.0,57361.0,0.0008]
[1725970386028,0.222022,57362.0,57361.0,0.0008]
[1725970386227,0.222022,57362.0,57354.0,0.0041]
[1725970386228,0.087162,57361.0,57354.0,0.0041]
[1725970386410,0.087176,57352.0,57351.0,0.0041]
[1725970386616,0.16,57351.0,57345.0,0.05187339]
[1725970386812,0.16,57351.0,57344.0,0.13906039]
[1725970387027,0.16,57351.0,57344.0,0.087187]
[1725970387418,0.087185,57347.0,57344.0,0.087187]
[1725970388018,0.087185,57346.0,57344.0,0.087187]
[1725970388219,0.087185,57346.0,57341.0,0.087191]
[1725970388421,0.16,57346.0,57340.0,0.087194]
[1725970388626,0.0497,57345.0,57340.0,0.087194]
[1725970388928,0.087189,57344.0,57341.0,0.087192]
[1725970389416,0.0497,57345.0,57337.0,0.0443]
[1725970389417,0.001,57347.0,57343.0,0.087188]
[1725970389614,0.087186,57346.0,57343.0,0.087188]
[1725970389822,0.001,57345.0,57343.0,0.087188]
[1725970390218,0.001,57345.0,57344.0,0.087188]
[1725970391426,0.2138,57355.0,57343.0,0.003]
[1725970391427,0.001,57347.0,57343.0,0.003]
[1725970391619,0.001,57347.0,57346.0,0.1608]
[1725970391824,0.001,57347.0,57346.0,0.247985]
[1725970392226,0.087176,57352.0,57346.0,0.1608]
[1725970392432,0.087176,57352.0,57351.0,0.0008]
[1725970395135,0.088176,57352.0,57351.0,0.0008]
[1725970395335,0.088176,57352.0,57351.0,0.0018]
[1725970395634,0.087176,57352.0,57351.0,0.0018]
[1725970395839,0.23583757,57355.0,57351.0,0.0018]
[1725970396022,0.32300857,57355.0,57354.0,0.0008]
[1725970397833,0.16300857,57355.0,57354.0,0.0008]
[1725970398225,0.16400857,57355.0,57354.0,0.0008]
[1725970398832,0.16300857,57355.0,57354.0,0.0008]
[1725970399023,0.16300857,57355.0,57354.0,0.0028]
[1725970399732,0.16300857,57355.0,57354.0,0.0008]
[1725970399932,0.16300857,57355.0,57354.0,0.0028]
[1725970400431,0.25017957,57355.0,57354.0,0.0028]
[1725970401933,0.30370227,57355.0,57354.0,0.0028]
[1725970402632,0.30370227,57355.0,57354.0,0.0018]
[1725970402824,0.30470227,57355.0,57354.0,0.0018]
[1725970405836,0.30470027,57355.0,57354.0,0.0018]
[1725970406129,0.25117957,57355.0,57354.0,0.0018]
[1725970413126,0.25117957,57355.0,57345.0,0.0041]
[1725970413127,1.19991757,57355.0,57345.0,0.0041]
[1725970413334,1.19991757,57355.0,57342.0,0.087191]
[1725970413335,0.08719,57343.0,57342.0,0.091291]
[1725970413634,0.08719,57343.0,57342.0,0.087191]
[1725970415337,0.08819,57343.0,57342.0,0.090191]
[1725970415531,0.08819,57343.0,57342.0,0.003]
[1725970415838,0.08819,57343.0,57342.0,0.013]
[1725970416234,0.08819,57343.0,57342.0,0.100191]
[1725970416740,0.001,57343.0,57342.0,0.100191]
[1725970420045,0.001,57343.0,57342.0,1.223351]
[1725970420952,0.11337582,57347.0,57346.0,0.087185]
[1725970421243,0.087184,57347.0,57346.0,0.087585]
[1725970422153,0.088184,57347.0,57346.0,0.089585]
[1725970422341,0.088184,57347.0,57346.0,0.094585]
[1725970423249,0.11438986,57347.0,57346.0,0.094585]
[1725970423743,0.36057386,57347.0,57346.0,0.0054]
[1725970423944,0.11438986,57347.0,57346.0,0.0084]
[1725970424245,0.02720586,57347.0,57346.0,0.095585]
[1725970424446,0.001,57347.0,57346.0,0.31511843]
[1725970424637,0.001,57347.0,57346.0,0.096585]
[1725970424844,0.001,57347.0,57346.0,0.1832401]
[1725970425149,0.088184,57347.0,57346.0,0.096585]
[1725970426944,0.248184,57347.0,57346.0,0.07872854]
[1725970427144,0.335368,57347.0,57346.0,0.0094]
[1725970428034,0.38889495,57347.0,57346.0,0.0094]
[1725970428650,0.335368,57347.0,57346.0,0.0094]
[1725970429844,0.248184,57347.0,57346.0,0.0094]
[1725970430349,0.30171074,57347.0,57346.0,0.0094]
[1725970430649,0.30171075,57347.0,57346.0,0.0094]
[1725970432247,0.38889475,57347.0,57346.0,0.0094]
[1725970432439,0.30171075,57347.0,57346.0,0.0094]
[1725970432637,0.38889475,57347.0,57346.0,0.0094]
[1725970433745,0.30171075,57347.0,57346.0,0.0094]
[1725970434948,0.38889475,57347.0,57346.0,0.0094]
[1725970435755,0.38889488,57347.0,57346.0,0.0094]
[1725970435947,0.248184,57347.0,57346.0,0.0094]
[1725970438157,0.335368,57347.0,57346.0,0.0094]
[1725970439656,0.248184,57347.0,57346.0,0.0094]
[1725970441950,0.335368,57347.0,57346.0,0.0094]
[1725970445256,0.248184,57347.0,57346.0,0.0094]
[1725970446064,0.335368,57347.0,57346.0,0.0094]
[1725970446553,0.248184,57347.0,57346.0,0.0094]
[1725970447055,0.335368,57347.0,57346.0,0.0094]
[1725970449267,0.248184,57347.0,57346.0,0.0094]
[1725970454266,0.3017112,57347.0,57346.0,0.0094]
[1725970454468,0.248184,57347.0,57346.0,0.0094]
[1725970455269,0.30171122,57347.0,57346.0,0.0094]
[1725970456269,0.38889522,57347.0,57346.0,0.0094]
[1725970456463,0.30171122,57347.0,57346.0,0.0094]
[1725970456855,0.248184,57347.0,57346.0,0.0094]
[1725970458160,0.188184,57347.0,57346.0,0.0094]
[1725970458365,0.188184,57347.0,57346.0,0.06140084]
[1725970459470,0.088184,57347.0,57346.0,0.06140084]
[1725970459662,0.0041,57357.0,57356.0,0.08717]
[1725970459863,0.002,57361.0,57360.0,0.087164]
[1725970460059,0.002,57361.0,57360.0,0.187164]
[1725970460258,0.002,57361.0,57360.0,0.187564]
[1725970460458,0.002,57361.0,57360.0,0.23917273]
[1725970461273,0.002,57361.0,57360.0,0.187164]
[1725970461763,0.002,57361.0,57360.0,0.087164]
[1725970462171,0.162,57361.0,57360.0,0.087164]
[1725970462574,0.162,57361.0,57356.0,0.05340873]
[1725970462575,0.249163,57361.0,57356.0,0.088569]
[1725970462765,0.16,57358.0,57356.0,0.088569]
[1725970463271,0.16,57358.0,57357.0,0.087168]
[1725970463568,0.002,57361.0,57358.0,0.087165]
[1725970463771,0.002,57361.0,57360.0,0.087564]
[1725970464971,0.162,57361.0,57360.0,0.087564]
[1725970465570,0.162,57361.0,57360.0,0.091564]
[1725970466165,0.162,57361.0,57360.0,0.087564]
[1725970466466,0.162,57361.0,57360.0,0.093564]
[1725970466971,0.72688306,57380.0,57360.0,1.2904]
[1725970466972,0.0041,57371.0,57360.0,1.2904]
[1725970467170,0.26703337,57379.0,57360.0,1.2904]
[1725970467171,0.087144,57374.0,57370.0,0.0008]
[1725970467573,0.087144,57374.0,57373.0,0.0008]
[1725970467774,0.087144,57374.0,57370.0,0.0008]
[1725970467974,0.247144,57374.0,57370.0,0.087948]
[1725970468363,0.14064844,57373.0,57370.0,0.0008]
[1725970468564,0.087147,57371.0,57370.0,0.0008]
[1725970468769,0.14065044,57371.0,57370.0,0.0008]
[1725970469470,0.087147,57371.0,57370.0,0.0008]
[1725970469775,0.14065174,57371.0,57370.0,0.0008]
[1725970470670,0.14765288,57371.0,57370.0,0.0008]
[1725970471176,0.15265288,57371.0,57370.0,0.0018]
[1725970471573,0.22550588,57371.0,57370.0,0.088949]
[1725970471873,0.22550588,57371.0,57370.0,0.0018]
[1725970472071,0.31265288,57371.0,57370.0,0.0018]
[1725970473276,0.259147,57371.0,57370.0,0.0018]
[1725970474174,0.172,57371.0,57370.0,0.0018]
[1725970474874,0.19819904,57371.0,57370.0,0.0018]
[1725970475666,0.28534604,57371.0,57370.0,0.0018]
[1725970476669,0.03819904,57371.0,57370.0,0.088949]
[1725970477671,0.012,57371.0,57370.0,0.088949]
[1725970479971,0.03791987,57371.0,57370.0,0.088949]
[1725970481876,0.03791987,57371.0,57370.0,0.0018]
[1725970483078,0.12506687,57371.0,57370.0,0.0018]
[1725970488076,0.17857071,57371.0,57370.0,0.0018]
[1725970489876,0.17857273,57371.0,57370.0,0.0018]
[1725970491683,0.37014317,57371.0,57370.0,0.0018]
[1725970493283,0.17857273,57371.0,57370.0,0.0018]
[1725970496183,0.12506687,57371.0,57370.0,0.0018]
[1725970500378,0.12506687,57371.0,57363.0,0.0041]
[1725970500379,0.174316,57364.0,57363.0,0.0041]
[1725970500579,0.16,57367.0,57357.0,0.05200873]
[1725970500897,0.0952,57370.0,57367.0,0.087153]
[1725970500898,0.08715,57370.0,57367.0,0.087153]
[1725970501086,0.16,57367.0,57366.0,0.0008]
[1725970502186,0.247153,57367.0,57366.0,0.0008]
[1725970502682,0.08715,57370.0,57366.0,0.0008]
[1725970502889,0.08715,57370.0,57369.0,0.0008]
[1725970503091,0.0008,57371.0,57369.0,0.0008]
[1725970503293,0.05350581,57370.0,57369.0,0.08795]
[1725970503597,0.05350581,57370.0,57369.0,0.08715]
[1725970504290,0.05750581,57370.0,57369.0,0.08715]
[1725970504791,0.06350581,57370.0,57369.0,0.08715]
[1725970506498,0.06350581,57370.0,57369.0,0.08815]
[1725970506499,0.06550581,57370.0,57369.0,0.08815]
[1725970508401,0.20369549,57370.0,57369.0,0.08815]
[1725970508685,0.29084449,57370.0,57369.0,0.08815]
[1725970508890,0.34434716,57370.0,57369.0,0.08815]
[1725970509587,0.44434716,57370.0,57369.0,0.08815]
[1725970509795,0.25265167,57370.0,57369.0,0.08815]
[1725970511199,0.199149,57370.0,57369.0,0.08815]
[1725970512594,0.012,57370.0,57369.0,0.18815]
[1725970516999,0.012,57370.0,57369.0,0.2753]
[1725970517199,0.012,57370.0,57369.0,0.8753]
[1725970517700,0.012,57370.0,57369.0,0.2753]
[1725970518202,0.06549975,57370.0,57369.0,0.2753]
[1725970518589,0.06549975,57370.0,57369.0,0.18815]
[1725970518998,0.06549975,57370.0,57369.0,0.2753]
[1725970519293,0.06549975,57370.0,57369.0,0.18815]
[1725970519489,0.06549975,57370.0,57369.0,0.2753]
[1725970520001,0.06549975,57370.0,57369.0,0.18815]
[1725970521297,0.012,57370.0,57369.0,0.18815]
[1725970522294,0.012,57370.0,57369.0,1.39822]
[1725970522492,0.06169704,57370.0,57369.0,1.39822]
[1725970522691,0.0082,57370.0,57369.0,1.39822]
[1725970523692,0.0082,57370.0,57369.0,1.31107]
[1725970524694,0.0042,57370.0,57369.0,1.31007]
[1725970525001,0.0042,57370.0,57369.0,0.71007]
[1725970525499,0.002,57370.0,57369.0,1.31007]
[1725970528004,0.002,57370.0,57369.0,0.79722]
[1725970528304,0.002,57370.0,57369.0,1.39722]
[1725970528599,0.002,57370.0,57369.0,0.79722]
[1725970528804,0.002,57370.0,57369.0,1.39722]
[1725970529696,0.002,57370.0,57369.0,0.71007]
[1725970530097,0.002,57370.0,57369.0,1.39722]
[1725970535704,0.002,57370.0,57369.0,0.2743]
[1725970536602,0.002,57370.0,57369.0,0.18715]
[1725970536804,0.002,57370.0,57369.0,0.2743]
[1725970537707,0.002,57370.0,57369.0,0.79722]
[1725970538012,0.002,57370.0,57369.0,1.39722]
[1725970539505,0.002,57370.0,57369.0,0.79722]
[1725970540208,0.002,57370.0,57369.0,1.39722]
[1725970540411,0.002,57370.0,57369.0,1.48437]
[1725970542702,0.002,57370.0,57369.0,0.79722]
[1725970543017,0.002,57370.0,57369.0,1.39722]
[1725970543204,0.002,57370.0,57369.0,1.48437]
[1725970543915,0.05549367,57370.0,57369.0,1.48437]
[1725970544107,0.05549432,57370.0,57369.0,1.48437]
[1725970544499,0.05549432,57370.0,57369.0,1.39722]
[1725970544705,0.002,57370.0,57369.0,1.39722]
[1725970545106,0.05549439,57370.0,57369.0,1.39722]
[1725970545306,0.05549439,57370.0,57369.0,1.48437]
[1725970545906,0.05549439,57370.0,57369.0,1.39722]
[1725970547216,0.05549439,57370.0,57369.0,0.2743]
[1725970547912,0.05549439,57370.0,57369.0,0.36145]
[1725970548107,0.05549439,57370.0,57369.0,0.2743]
[1725970548316,0.002,57370.0,57369.0,0.2743]
[1725970548817,0.002,57370.0,57369.0,0.88437]
[1725970549613,0.002,57370.0,57369.0,1.48437]
[1725970551102,0.002,57370.0,57369.0,1.55372747]
[1725970551911,0.002,57370.0,57369.0,1.48437]
[1725970552108,0.002,57370.0,57369.0,1.55354936]
[1725970552506,0.002,57370.0,57369.0,1.48437]
[1725970554612,0.002,57370.0,57369.0,0.36145]
[1725970554812,0.002,57370.0,57369.0,0.96145]
[1725970555009,1e-06,57370.0,57369.0,1.57152]
[1725970555213,0.045,57378.0,57377.0,0.261414]
[1725970555507,0.045,57378.0,57377.0,0.362214]
[1725970556111,0.045,57378.0,57377.0,0.275076]
[1725970556317,0.09848916,57378.0,57377.0,0.275076]
[1725970556522,0.045,57378.0,57377.0,0.275076]
[1725970557215,0.05,57378.0,57377.0,0.276076]
[1725970558310,0.063,57378.0,57377.0,0.277076]
[1725970558719,0.058,57378.0,57377.0,0.276076]
[1725970559013,0.047,57378.0,57377.0,0.275076]
[1725970559320,0.05,57378.0,57377.0,0.275076]
[1725970560519,0.05,57378.0,57377.0,0.187938]
[1725970561117,0.05,57378.0,57377.0,0.087938]
[1725970561525,0.137137,57378.0,57377.0,0.087938]
[1725970561927,0.05,57378.0,57377.0,0.087938]
[1725970562419,0.05,57378.0,57377.0,0.187938]
[1725970564822,0.137137,57378.0,57377.0,0.087938]
[1725970566631,0.05,57378.0,57377.0,0.087938]
[1725970567525,0.137137,57378.0,57377.0,0.087938]
[1725970567721,0.237137,57378.0,57377.0,0.0008]
[1725970567934,0.087146,57372.0,57371.0,0.05184267]
[1725970568117,0.087153,57367.0,57366.0,0.13899667]
[1725970568321,0.187153,57367.0,57366.0,0.087154]
[1725970569028,0.087156,57365.0,57364.0,0.05184267]
[1725970569231,0.087156,57365.0,57361.0,0.06916975]
[1725970569232,0.087156,57365.0,57363.0,0.05184267]
[1725970569430,0.187158,57364.0,57363.0,0.05184267]
[1725970569728,0.1,57364.0,57358.0,0.087167]
[1725970569924,0.187165,57360.0,57355.0,0.05183595]
[1725970570231,0.1,57357.0,57356.0,0.08717]
[1725970571627,0.101,57357.0,57356.0,0.09517]
[1725970573226,0.188168,57357.0,57356.0,0.013]
[1725970573934,0.187168,57357.0,57356.0,0.005]
[1725970574125,1.311208,57357.0,57356.0,0.012]
[1725970575927,0.711208,57357.0,57356.0,0.012]
[1725970576439,0.001,57357.0,57356.0,0.012]
[1725970576743,0.088168,57357.0,57356.0,0.09917]
[1725970577037,0.001,57357.0,57356.0,0.09917]
[1725970581445,0.088168,57357.0,57356.0,0.012]
[1725970584133,0.088168,57357.0,57356.0,0.09917]
[1725970587330,0.088168,57357.0,57356.0,0.012]
[1725970593547,0.175336,57357.0,57356.0,0.012]
[1725970595054,0.087181,57349.0,57348.0,0.0041]
[1725970595240,0.087182,57348.0,57343.0,0.087189]
[1725970595440,0.247188,57345.0,57343.0,0.087189]
[1725970596249,0.247188,57345.0,57344.0,0.087188]
[1725970596447,0.087189,57344.0,57341.0,0.0462]
[1725970597044,0.087189,57344.0,57343.0,0.014]
[1725970597246,0.087189,57344.0,57343.0,0.016]
[1725970597766,0.087189,57344.0,57343.0,0.08919]
[1725970597946,0.087189,57344.0,57343.0,0.08719]
[1725970598252,0.088189,57344.0,57343.0,0.08719]
[1725970599640,0.089189,57344.0,57343.0,0.10119]
[1725970599957,0.088189,57344.0,57343.0,0.10119]
[1725970600250,0.189189,57344.0,57343.0,0.10319]